fUST/lending_fUST_20250208
["ID","MTS","AMOUNT","RATE_DAILY","PERIOD"]
[352174001,1738974649295,-2249.97,0.00011369,2]
[352174002,1738974649304,-500.0,0.00011369,2]
[352174003,1738974649314,-5006.08,0.00011369,2]
[352174004,1738974649328,-500.0,0.00011369,2]
[352174005,1738974649338,-500.0,0.00011369,2]
[352174006,1738974649348,-2503.36,0.00011369,2]
[352174007,1738974649357,-1044.62,0.00011369,2]
[352174008,1738974649368,-1435.68,0.00011369,2]
[352174009,1738974649377,-705.01,0.00011369,2]
[352174010,1738974649389,-619.59,0.00011369,2]
[352174011,1738974649400,-500.0,0.00011369,2]
[352174012,1738974649410,-1173.99,0.00011369,2]
[352174013,1738974649420,-500.0,0.00011369,2]
[352174014,1738974649429,-3285.86,0.00011369,2]
[352174015,1738974649439,-983.05,0.00011369,2]
[352174016,1738974649448,-500.0,0.00011369,2]
[352174017,1738974649457,-500.0,0.00011369,2]
[352174018,1738974649467,-561.75,0.00011369,2]
[352174019,1738974649476,-500.0,0.00011369,2]
[352174020,1738974649486,-500.0,0.00011369,2]
[352174021,1738974649496,-554.21,0.00011369,2]
[352174022,1738974649506,-941.93,0.00011369,2]
[352174023,1738974649515,-153.0,0.000114,2]
[352174024,1738974649524,-13264.03974987,0.00011431,2]
[352174025,1738974649533,-363.392347,0.00011506,2]
[352174026,1738974649543,-363.392347,0.00011506,2]
[352174027,1738974649551,-273.343327,0.00011506,2]
[352174028,1738974649561,-273.343327,0.00011506,2]
[352174029,1738974649570,-151.0,0.00011506,2]
[352174030,1738974649579,-151.0,0.00011506,2]
[352174031,1738974649588,-151.0,0.00011506,2]
[352174032,1738974649597,-500.0,0.00011506,2]
[352174033,1738974649607,-500.0,0.00011506,2]
[352174034,1738974649616,-500.0,0.00011506,2]
[352174035,1738974649625,-615.62,0.00011506,2]
[352174036,1738974649769,-500.0,0.00011506,2]
[352174037,1738974649778,-500.0,0.00011506,2]
[352174038,1738974649787,-1066.74,0.00011506,2]
[352174039,1738974649797,-500.0,0.00011506,2]
[352174040,1738974649806,-500.0,0.00011506,2]
[352174041,1738974649815,-500.0,0.00011506,2]
[352174042,1738974649827,-500.0,0.00011506,2]
[352174043,1738974649836,-500.0,0.00011506,2]
[352174044,1738974649845,-618.38,0.00011506,2]
[352174045,1738974649855,-519.04,0.00011506,2]
[352174046,1738974649865,-300.4,0.00011506,2]
[352174047,1738974649875,-500.0,0.00011506,2]
[352174048,1738974649887,-500.0,0.00011506,2]
[352174049,1738974649898,-936.72,0.00011506,2]
[352174050,1738974649909,-500.0,0.00011506,2]
[352174051,1738974649918,-909.0,0.00011506,2]
[352174052,1738974649928,-500.0,0.00011506,2]
[352174053,1738974649937,-769.7,0.00011506,2]
[352174054,1738974649948,-500.0,0.00011506,2]
[352174055,1738974649957,-500.0,0.00011506,2]
[352174056,1738974649966,-500.0,0.00011506,2]
[352174057,1738974649975,-1023.05,0.00011506,2]
[352174058,1738974649984,-314.36,0.00011506,2]
[352174059,1738974649994,-518.92,0.00011506,2]
[352174060,1738974650003,-500.0,0.00011506,2]
[352174061,1738974650013,-785.6,0.00011506,2]
[352174062,1738974650022,-500.0,0.00011506,2]
[352174063,1738974650032,-9198.19,0.00011506,2]
[352174064,1738974650041,-500.0,0.00011506,2]
[352174065,1738974650051,-500.0,0.00011506,2]
[352174066,1738974650061,-961.83,0.00011506,2]
[352174067,1738974650071,-500.0,0.00011506,2]
[352174068,1738974650081,-692.77,0.00011506,2]
[352174069,1738974650091,-527.79,0.00011506,2]
[352174070,1738974650100,-1105.8,0.00011506,2]
[352174071,1738974650109,-1073.22,0.00011506,2]
[352174072,1738974650119,-2442.89,0.00011506,2]
[352174073,1738974650128,-500.0,0.00011506,2]
[352174074,1738974650137,-515.97,0.00011506,2]
[352174075,1738974650146,-2224.23,0.00011506,2]
[352174076,1738974650155,-919.55,0.00011506,2]
[352174077,1738974650164,-151.0,0.00011506,2]
[352174078,1738974650174,-561.06,0.00011506,2]
[352174079,1738974650183,-151.0,0.00011506,2]
[352174080,1738974650193,-500.0,0.00011506,2]
[352174081,1738974650203,-1259.73,0.00011506,2]
[352174082,1738974650213,-817.68,0.00011506,2]
[352174083,1738974650222,-2862.95,0.00011506,2]
[352174084,1738974650231,-3516.95,0.00011506,2]
[352174085,1738974650240,-500.0,0.00011506,2]
[352174086,1738974650250,-521.22,0.00011506,2]
[352174087,1738974650259,-263.954281,0.00011506,2]
[352174088,1738974650269,-32344.5,0.00011506,2]
[352174089,1738974650279,-1322.92,0.00011506,2]
[352174090,1738974650288,-263.954281,0.00011506,2]
[352174091,1738974650298,-500.0,0.00011506,2]
[352174092,1738974650307,-775.58,0.00011506,2]
[352174093,1738974650319,-8197.78,0.00011506,2]
[352174094,1738974650329,-1370.81,0.00011506,2]
[352174095,1738974650338,-1431.68,0.00011506,2]
[352174096,1738974650347,-500.0,0.00011506,2]
[352174097,1738974650358,-500.0,0.00011506,2]
[352174098,1738974650367,-472.88,0.00011506,2]
[352174099,1738974650377,-500.0,0.00011506,2]
[352174100,1738974650386,-728.48,0.00011506,2]
[352174101,1738974650397,-1541.46,0.00011506,2]
[352174102,1738974650407,-785.66,0.00011506,2]
[352174103,1738974650416,-151.0,0.00011506,2]
[352174104,1738974650425,-500.0,0.00011506,2]
[352174105,1738974650435,-500.0,0.00011506,2]
[352174106,1738974650444,-1085.86,0.00011506,2]
[352174107,1738974650453,-500.0,0.00011506,2]
[352174108,1738974650463,-566.84,0.00011506,2]
[352174109,1738974650472,-656.1,0.00011506,2]
[352174110,1738974650481,-151.0,0.00011506,2]
[352174111,1738974650491,-500.0,0.00011506,2]
[352174112,1738974650500,-797.26,0.00011506,2]
[352174113,1738974650509,-500.0,0.00011506,2]
[352174114,1738974650519,-500.0,0.00011506,2]
[352174115,1738974650528,-502.77,0.00011506,2]
[352174116,1738974650537,-2443.17,0.00011506,2]
[352174117,1738974650545,-2249.97,0.00011506,2]
[352174118,1738974650554,-500.0,0.00011506,2]
[352174119,1738974650564,-5006.08,0.00011506,2]
[352174120,1738974650574,-468.14043361,0.00011506,2]
[352174121,1738974650582,-500.0,0.00011506,2]
[352174122,1738974650592,-2503.36,0.00011506,2]
[352174123,1738974650602,-1044.62,0.00011506,2]
[352174124,1738974650612,-1435.68,0.00011506,2]
[352174125,1738974650622,-705.01,0.00011506,2]
[352174126,1738974650631,-274.396718,0.00011506,2]
[352174127,1738974650641,-619.59,0.00011506,2]
[352174128,1738974650650,-500.0,0.00011506,2]
[352174129,1738974650659,-1173.99,0.00011506,2]
[352174130,1738974650668,-151.0,0.00011506,2]
[352174131,1738974650677,-3285.86,0.00011506,2]
[352174132,1738974650686,-983.05,0.00011506,2]
[352174133,1738974650695,-151.0,0.00011506,2]
[352174134,1738974650704,-151.0,0.00011506,2]
[352174135,1738974650713,-500.0,0.00011506,2]
[352174136,1738974650723,-500.0,0.00011506,2]
[352174137,1738974650732,-561.75,0.00011506,2]
[352174138,1738974650742,-500.0,0.00011506,2]
[352174139,1738974650751,-500.0,0.00011506,2]
[352174140,1738974650760,-554.21,0.00011506,2]
[352174141,1738974650769,-941.93,0.00011506,2]
[352174142,1738974650778,-3392.8703,0.00011512,2]
[352174143,1738974650787,-1000.0,0.00011521,2]
[352174144,1738974650796,-1000.0,0.00011521,2]
[352174145,1738974650806,-1000.0,0.00011521,2]
[352174146,1738974650815,-2809.71171452,0.00011543,2]
[352174147,1738974650825,-707.383,0.00011561,2]
[352174148,1738974650834,-10000.0,0.00011614,2]
[352174149,1738974650843,-516.113612,0.00011643,2]
[352174150,1738974650852,-500.0,0.00011643,2]
[352174151,1738974650862,-500.0,0.00011643,2]
[352174152,1738974650871,-500.0,0.00011643,2]
[352174153,1738974650880,-615.62,0.00011643,2]
[352174154,1738974650891,-500.0,0.00011643,2]
[352174155,1738974650900,-500.0,0.00011643,2]
[352174156,1738974650909,-1066.74,0.00011643,2]
[352174157,1738974650919,-500.0,0.00011643,2]
[352174158,1738974650928,-500.0,0.00011643,2]
[352174159,1738974650937,-500.0,0.00011643,2]
[352174160,1738974650955,-618.38,0.00011643,2]
[352174161,1738974650964,-519.04,0.00011643,2]
[352174162,1738974650973,-500.0,0.00011643,2]
[352174163,1738974650983,-936.72,0.00011643,2]
[352174164,1738974650992,-500.0,0.00011643,2]
[352174165,1738974651001,-909.0,0.00011643,2]
[352174166,1738974651010,-500.0,0.00011643,2]
[352174167,1738974651020,-769.7,0.00011643,2]
[352174168,1738974651029,-500.0,0.00011643,2]
[352174169,1738974651038,-151.0,0.00011643,2]
[352174170,1738974651047,-500.0,0.00011643,2]
[352174171,1738974651056,-151.0,0.00011643,2]
[352174172,1738974651065,-500.0,0.00011643,2]
[352174173,1738974651074,-1023.05,0.00011643,2]
[352174174,1738974651083,-151.0,0.00011643,2]
[352174175,1738974651092,-500.0,0.00011643,2]
[352174176,1738974651102,-151.0,0.00011643,2]
[352174177,1738974651111,-151.0,0.00011643,2]
[352174178,1738974651121,-785.6,0.00011643,2]
[352174179,1738974651131,-500.0,0.00011643,2]
[352174180,1738974651140,-9198.19,0.00011643,2]
[352174181,1738974651150,-500.0,0.00011643,2]
[352174182,1738974651159,-13.89777069,0.00011643,2]
[352174257,1738975832961,-707.383,0.00010739,2]
[352174258,1738975832970,-179.739,0.00010739,2]
[352174259,1738975832980,-217.0,0.00010777,2]
[352174260,1738975832990,-161.0,0.00010777,2]
[352174261,1738975832999,-71.40856753,0.00010858,2]
[352174262,1738975833011,-90.16433567,0.00010858,2]
[352174264,1738975833020,-300.0,0.00010957,2]
[352174266,1738975833030,-596.72236873,0.00010957,2]
[352174268,1738975833040,-500.0,0.00010958,2]
[352174270,1738975833050,-340.1928242,0.00010958,2]
[352174273,1738975833060,-500.0,0.00010958,2]
[352174275,1738975833070,-500.0,0.00010958,2]
[352174277,1738975833080,-500.0,0.00010958,2]
[352174279,1738975833090,-500.0,0.00010958,2]
[352174281,1738975833099,-500.0,0.00010958,2]
[352174283,1738975833108,-500.0,0.00010958,2]
[352174286,1738975833118,-500.0,0.00010958,2]
[352174289,1738975833127,-500.0,0.00010958,2]
[352174290,1738975833137,-504.74521991,0.00010958,2]
[352174292,1738975833146,-500.0,0.00010958,2]
[352174294,1738975833156,-500.0,0.00010958,2]
[352174296,1738975833165,-500.0,0.00010958,2]
[352174298,1738975833176,-284.93659093,0.00010958,2]
[352174300,1738975833185,-500.0,0.00010958,2]
[352174302,1738975833195,-500.0,0.00010958,2]
[352174304,1738975833208,-501.62133054,0.00010958,2]
[352174306,1738975833218,-500.0,0.00010958,2]
[352174308,1738975833229,-500.0,0.00010958,2]
[352174310,1738975833239,-500.0,0.00010958,2]
[352174312,1738975833250,-500.0,0.00010958,2]
[352174314,1738975833260,-500.0,0.00010958,2]
[352174316,1738975833270,-376.83327941,0.00010958,2]
[352174318,1738975833281,-500.0,0.00010958,2]
[352174320,1738975833291,-500.0,0.00010958,2]
[352174322,1738975833302,-500.0,0.00010958,2]
[352174324,1738975833313,-500.0,0.00010958,2]
[352174326,1738975833323,-224.08352758,0.00010958,2]
[352174328,1738975833334,-500.0,0.00010958,2]
[352174329,1738975833344,-500.0,0.00010958,2]
[352174330,1738975833355,-500.0,0.00010958,2]
[352174331,1738975833364,-500.0,0.00010958,2]
[352174332,1738975833374,-500.0,0.00010958,2]
[352174333,1738975833384,-500.0,0.00010958,2]
[352174334,1738975833394,-500.0,0.00010958,2]
[352174335,1738975833403,-501.03179903,0.00010958,2]
[352174336,1738975833413,-500.0,0.00010958,2]
[352174337,1738975833423,-500.0,0.00010958,2]
[352174338,1738975833432,-500.0,0.00010958,2]
[352174339,1738975833440,-500.0,0.00010958,2]
[352174340,1738975833454,-500.0,0.00010958,2]
[352174341,1738975833463,-500.0,0.00010958,2]
[352174342,1738975833473,-500.0,0.00010958,2]
[352174343,1738975833482,-500.0,0.00010958,2]
[352174344,1738975833492,-500.0,0.00010958,2]
[352174345,1738975833501,-500.0,0.00010958,2]
[352174346,1738975833512,-500.0,0.00010958,2]
[352174347,1738975833523,-520.48775068,0.00010958,2]
[352174348,1738975833534,-500.0,0.00010958,2]
[352174349,1738975833544,-500.0,0.00010958,2]
[352174350,1738975833554,-247.36314904,0.00010958,2]
[352174351,1738975833563,-500.0,0.00010958,2]
[352174352,1738975833573,-500.0,0.00010958,2]
[352174353,1738975833581,-500.0,0.00010958,2]
[352174354,1738975833591,-500.0,0.00010958,2]
[352174356,1738975833601,-500.0,0.00010958,2]
[352174357,1738975833610,-500.0,0.00010958,2]
[352174358,1738975833620,-500.0,0.00010958,2]
[352174360,1738975833630,-500.0,0.00010958,2]
[352174362,1738975833640,-500.0,0.00010958,2]
[352174364,1738975833650,-500.0,0.00010958,2]
[352174366,1738975833660,-500.0,0.00010958,2]
[352174368,1738975833669,-500.0,0.00010958,2]
[352174370,1738975833679,-414.51564704,0.00010958,2]
[352174372,1738975833689,-500.0,0.00010958,2]
[352174374,1738975833701,-500.0,0.00010958,2]
[352174376,1738975833710,-500.0,0.00010958,2]
[352174378,1738975833721,-500.0,0.00010958,2]
[352174379,1738975833731,-519.75081571,0.00010958,2]
[352174381,1738975833743,-500.0,0.00010958,2]
[352174383,1738975833753,-500.0,0.00010958,2]
[352174385,1738975833763,-500.0,0.00010958,2]
[352174387,1738975833772,-500.90461884,0.00010958,2]
[352174389,1738975833783,-500.0,0.00010958,2]
[352174391,1738975833794,-500.0,0.00010958,2]
[352174393,1738975833803,-500.0,0.00010958,2]
[352174395,1738975833813,-232.44990168,0.00010958,2]
[352174397,1738975833823,-500.0,0.00010958,2]
[352174399,1738975833832,-500.0,0.00010958,2]
[352174401,1738975833842,-500.0,0.00010958,2]
[352174403,1738975833851,-500.0,0.00010958,2]
[352174405,1738975833861,-570.00038302,0.00010958,2]
[352174407,1738975833871,-500.0,0.00010958,2]
[352174409,1738975833881,-500.0,0.00010958,2]
[352174411,1738975833891,-500.0,0.00010958,2]
[352174413,1738975833900,-500.0,0.00010958,2]
[352174415,1738975833910,-500.0,0.00010958,2]
[352174417,1738975833919,-500.0,0.00010958,2]
[352174419,1738975833928,-500.0,0.00010958,2]
[352174421,1738975833938,-288.79659129,0.00010958,2]
[352174423,1738975833950,-500.0,0.00010958,2]
[352174425,1738975833959,-206.95330172,0.00010958,2]
[352174427,1738975833969,-500.0,0.00010958,2]
[352174429,1738975833978,-500.0,0.00010958,2]
[352174431,1738975833987,-500.0,0.00010958,2]
[352174433,1738975833997,-500.0,0.00010958,2]
[352174435,1738975834007,-500.0,0.00010958,2]
[352174437,1738975834016,-500.0,0.00010958,2]
[352174439,1738975834025,-500.0,0.00010958,2]
[352174441,1738975834034,-500.0,0.00010958,2]
[352174443,1738975834043,-500.0,0.00010958,2]
[352174444,1738975834052,-500.0,0.00010958,2]
[352174445,1738975834061,-500.0,0.00010958,2]
[352174447,1738975834071,-500.0,0.00010958,2]
[352174449,1738975834081,-500.0,0.00010958,2]
[352174451,1738975834091,-500.0,0.00010958,2]
[352174453,1738975834100,-501.21233733,0.00010958,2]
[352174454,1738975834110,-500.0,0.00010958,2]
[352174457,1738975834119,-500.0,0.00010958,2]
[352174458,1738975834130,-500.0,0.00010958,2]
[352174461,1738975834139,-500.0,0.00010958,2]
[352174462,1738975834149,-413.77714815,0.00010958,2]
[352174464,1738975834158,-500.0,0.00010958,2]
[352174466,1738975834167,-500.0,0.00010958,2]
[352174468,1738975834177,-500.0,0.00010958,2]
[352174470,1738975834186,-500.0,0.00010958,2]
[352174471,1738975834196,-500.0,0.00010958,2]
[352174472,1738975834206,-500.0,0.00010958,2]
[352174473,1738975834216,-500.0,0.00010958,2]
[352174474,1738975834225,-500.0,0.00010958,2]
[352174475,1738975834235,-500.95828207,0.00010958,2]
[352174476,1738975834244,-500.0,0.00010958,2]
[352174477,1738975834254,-500.0,0.00010958,2]
[352174478,1738975834264,-500.0,0.00010958,2]
[352174479,1738975834274,-500.0,0.00010958,2]
[352174480,1738975834283,-500.0,0.00010958,2]
[352174481,1738975834293,-368.42012383,0.00010958,2]
[352174482,1738975834302,-500.0,0.00010958,2]
[352174483,1738975834311,-500.0,0.00010958,2]
[352174484,1738975834321,-525.19795782,0.00010958,2]
[352174485,1738975834330,-500.0,0.00010958,2]
[352174486,1738975834340,-500.0,0.00010958,2]
[352174487,1738975834349,-500.0,0.00010958,2]
[352174488,1738975834360,-500.0,0.00010958,2]
[352174489,1738975834369,-663.32,0.00010958,2]
[352174490,1738975834379,-500.0,0.00010958,2]
[352174491,1738975834389,-500.0,0.00010958,2]
[352174492,1738975834398,-182.51715544,0.00010958,2]
[352174498,1738975838509,-317.48284456,0.00010958,2]
[352174499,1738975838519,-500.0,0.00010958,2]
[352174500,1738975838528,-500.0,0.00010958,2]
[352174501,1738975838537,-292.89185279,0.00010958,2]
[352174502,1738975838546,-500.0,0.00010958,2]
[352174503,1738975838555,-500.0,0.00010958,2]
[352174504,1738975838565,-500.0,0.00010958,2]
[352174505,1738975838573,-500.0,0.00010958,2]
[352174506,1738975838583,-500.0,0.00010958,2]
[352174507,1738975838592,-500.0,0.00010958,2]
[352174508,1738975838601,-500.0,0.00010958,2]
[352174509,1738975838610,-500.0,0.00010958,2]
[352174510,1738975838619,-534.23,0.00010958,2]
[352174511,1738975838628,-500.0,0.00010958,2]
[352174512,1738975838637,-500.0,0.00010958,2]
[352174513,1738975838646,-500.0,0.00010958,2]
[352174514,1738975838655,-500.0,0.00010958,2]
[352174515,1738975838665,-500.0,0.00010958,2]
[352174516,1738975838675,-500.0,0.00010958,2]
[352174517,1738975838684,-500.0,0.00010958,2]
[352174518,1738975838694,-31.95964815,0.00010958,2]
[352174519,1738975838708,-468.04035185,0.00010958,2]
[352174520,1738975838717,-500.0,0.00010958,2]
[352174521,1738975838726,-500.0,0.00010958,2]
[352174522,1738975838735,-500.0,0.00010958,2]
[352174523,1738975838744,-505.51061427,0.00010958,2]
[352174524,1738975838753,-500.0,0.00010958,2]
[352174525,1738975838762,-525.93033157,0.00010958,2]
[352174526,1738975838772,-500.0,0.00010958,2]
[352174527,1738975838790,-500.0,0.00010958,2]
[352174528,1738975838799,-500.0,0.00010958,2]
[352174529,1738975838808,-500.0,0.00010958,2]
[352174530,1738975838817,-500.0,0.00010958,2]
[352174531,1738975838828,-500.0,0.00010958,2]
[352174532,1738975838837,-500.0,0.00010958,2]
[352174533,1738975838847,-673.93,0.00010958,2]
[352174534,1738975838855,-500.0,0.00010958,2]
[352174535,1738975838864,-500.0,0.00010958,2]
[352174536,1738975838873,-500.0,0.00010958,2]
[352174537,1738975838883,-500.0,0.00010958,2]
[352174538,1738975838891,-500.0,0.00010958,2]
[352174539,1738975838901,-500.0,0.00010958,2]
[352174540,1738975838910,-500.0,0.00010958,2]
[352174541,1738975838919,-500.0,0.00010958,2]
[352174542,1738975838928,-500.0,0.00010958,2]
[352174543,1738975838937,-500.0,0.00010958,2]
[352174544,1738975838946,-500.0,0.00010958,2]
[352174545,1738975838956,-251.97811523,0.00010958,2]
[352174546,1738975838964,-500.0,0.00010958,2]
[352174547,1738975838974,-500.0,0.00010958,2]
[352174548,1738975838983,-500.0,0.00010958,2]
[352174549,1738975838993,-500.0,0.00010958,2]
[352174550,1738975839002,-510.1295938,0.00010958,2]
[352174551,1738975839011,-500.0,0.00010958,2]
[352174552,1738975839020,-500.0,0.00010958,2]
[352174553,1738975839029,-813.83,0.00010958,2]
[352174554,1738975839199,-500.0,0.00010958,2]
[352174555,1738975839210,-500.0,0.00010958,2]
[352174556,1738975839219,-471.41757479,0.00010958,2]
[352174557,1738975839229,-500.0,0.00010958,2]
[352174558,1738975839238,-500.0,0.00010958,2]
[352174559,1738975839247,-204.03665663,0.00010958,2]
[352174560,1738975839256,-500.0,0.00010958,2]
[352174561,1738975839265,-500.0,0.00010958,2]
[352174562,1738975839274,-500.0,0.00010958,2]
[352174563,1738975839283,-500.0,0.00010958,2]
[352174564,1738975839292,-501.72925763,0.00010958,2]
[352174565,1738975839302,-500.0,0.00010958,2]
[352174566,1738975839311,-508.79098344,0.00010958,2]
[352174567,1738975839320,-500.0,0.00010958,2]
[352174568,1738975839330,-500.0,0.00010958,2]
[352174569,1738975839338,-500.0,0.00010958,2]
[352174570,1738975839348,-500.0,0.00010958,2]
[352174571,1738975839358,-500.0,0.00010958,2]
[352174572,1738975839368,-500.0,0.00010958,2]
[352174573,1738975839378,-500.0,0.00010958,2]
[352174574,1738975839387,-605.81,0.00010958,2]
[352174575,1738975839397,-500.0,0.00010958,2]
[352174576,1738975839406,-500.0,0.00010958,2]
[352174577,1738975839416,-500.0,0.00010958,2]
[352174578,1738975839426,-500.0,0.00010958,2]
[352174579,1738975839435,-501.34858752,0.00010958,2]
[352174580,1738975839445,-500.0,0.00010958,2]
[352174581,1738975839454,-501.55642339,0.00010958,2]
[352174582,1738975839464,-500.0,0.00010958,2]
[352174583,1738975839473,-500.0,0.00010958,2]
[352174584,1738975839483,-500.0,0.00010958,2]
[352174585,1738975839492,-500.0,0.00010958,2]
[352174586,1738975839502,-500.0,0.00010958,2]
[352174587,1738975839511,-500.0,0.00010958,2]
[352174588,1738975839521,-500.0,0.00010958,2]
[352174589,1738975839530,-500.0,0.00010958,2]
[352174590,1738975839539,-500.0,0.00010958,2]
[352174591,1738975839548,-500.0,0.00010958,2]
[352174592,1738975839557,-500.0,0.00010958,2]
[352174593,1738975839567,-500.0,0.00010958,2]
[352174594,1738975839576,-500.0,0.00010958,2]
[352174595,1738975839585,-500.0,0.00010958,2]
[352174596,1738975839595,-500.0,0.00010958,2]
[352174597,1738975839604,-500.0,0.00010958,2]
[352174598,1738975839614,-500.0,0.00010958,2]
[352174599,1738975839623,-500.0,0.00010958,2]
[352174600,1738975839632,-355.19626421,0.00010958,2]
[352174601,1738975839642,-803.16,0.00010958,2]
[352174602,1738975839651,-435.56365965,0.00010958,2]
[352174603,1738975839660,-500.0,0.00010958,2]
[352174604,1738975839670,-500.0,0.00010958,2]
[352174605,1738975839679,-500.22088784,0.00010958,2]
[352174606,1738975839689,-500.0,0.00010958,2]
[352174607,1738975839698,-405.8795387,0.00010958,2]
[352174608,1738975839708,-500.0,0.00010958,2]
[352174609,1738975839717,-500.0,0.00010958,2]
[352174610,1738975839726,-500.0,0.00010958,2]
[352174611,1738975839735,-500.0,0.00010958,2]
[352174612,1738975839744,-492.22685421,0.00010958,2]
[352174613,1738975839753,-500.0,0.00010958,2]
[352174614,1738975839762,-500.0,0.00010958,2]
[352174615,1738975839772,-500.0,0.00010958,2]
[352174616,1738975839782,-500.0,0.00010958,2]
[352174617,1738975839794,-500.0,0.00010958,2]
[352174618,1738975839804,-500.0,0.00010958,2]
[352174619,1738975839813,-500.0,0.00010958,2]
[352174620,1738975839823,-500.0,0.00010958,2]
[352174621,1738975839833,-586.44,0.00010958,2]
[352174622,1738975839843,-500.0,0.00010958,2]
[352174623,1738975839852,-500.0,0.00010958,2]
[352174624,1738975839864,-500.0,0.00010958,2]
[352174625,1738975839875,-500.0,0.00010958,2]
[352174626,1738975839886,-500.0,0.00010958,2]
[352174627,1738975839896,-500.0,0.00010958,2]
[352174628,1738975839906,-500.0,0.00010958,2]
[352174629,1738975839916,-500.0,0.00010958,2]
[352174630,1738975839926,-948.52,0.00010958,2]
[352174631,1738975839936,-500.0,0.00010958,2]
[352174632,1738975839945,-500.0,0.00010958,2]
[352174633,1738975839958,-500.0,0.00010958,2]
[352174634,1738975839967,-500.0,0.00010958,2]
[352174635,1738975839977,-500.0,0.00010958,2]
[352174636,1738975839986,-500.0,0.00010958,2]
[352174637,1738975839995,-500.0,0.00010958,2]
[352174638,1738975840005,-500.0,0.00010958,2]
[352174639,1738975840015,-500.0,0.00010958,2]
[352174640,1738975840025,-517.09,0.00010958,2]
[352174641,1738975840035,-502.89173317,0.00010958,2]
[352174642,1738975840045,-500.0,0.00010958,2]
[352174643,1738975840054,-500.0,0.00010958,2]
[352174644,1738975840064,-500.0,0.00010958,2]
[352174645,1738975840073,-500.0,0.00010958,2]
[352174646,1738975840083,-500.0,0.00010958,2]
[352174647,1738975840093,-500.0,0.00010958,2]
[352174648,1738975840103,-500.0,0.00010958,2]
[352174649,1738975840112,-500.0,0.00010958,2]
[352174650,1738975840122,-500.0,0.00010958,2]
[352174651,1738975840131,-500.0,0.00010958,2]
[352174652,1738975840142,-500.0,0.00010958,2]
[352174653,1738975840153,-500.0,0.00010958,2]
[352174654,1738975840163,-500.0,0.00010958,2]
[352174655,1738975840173,-500.0,0.00010958,2]
[352174656,1738975840183,-500.0,0.00010958,2]
[352174657,1738975840192,-500.0,0.00010958,2]
[352174658,1738975840206,-500.0,0.00010958,2]
[352174659,1738975840219,-500.0,0.00010958,2]
[352174660,1738975840229,-500.0,0.00010958,2]
[352174661,1738975840240,-500.0,0.00010958,2]
[352174662,1738975840253,-500.0,0.00010958,2]
[352174663,1738975840263,-500.0,0.00010958,2]
[352174664,1738975840274,-500.0,0.00010958,2]
[352174665,1738975840285,-500.0,0.00010958,2]
[352174666,1738975840295,-500.0,0.00010958,2]
[352174667,1738975840305,-500.0,0.00010958,2]
[352174668,1738975840315,-500.0,0.00010958,2]